fUST/lending_fUST_20250801
["ID","MTS","AMOUNT","RATE_DAILY","PERIOD"]
[376563368,1754025034337,-460.0,0.00020668,2]
[376563369,1754025034347,-460.0,0.00020668,2]
[376563370,1754025034356,-460.21140203,0.00020668,2]
[376563371,1754025034366,-941.98,0.00020668,2]
[376563372,1754025034376,-449.04346125,0.00020668,2]
[376563373,1754025034386,-461.46121839,0.00020668,2]
[376563374,1754025034395,-460.0,0.00020668,2]
[376563375,1754025034405,-581.99559511,0.00020668,2]
[376563376,1754025034415,-460.0,0.00020668,2]
[376563377,1754025034424,-544.83,0.00020668,2]
[376563378,1754025034435,-250.27192875,0.00020668,2]
[376563379,1754025034445,-460.0,0.00020668,2]
[376563380,1754025034455,-463.40558608,0.00020668,2]
[376563381,1754025034470,-466.43,0.00020668,2]
[376563382,1754025034479,-460.0,0.00020668,2]
[376563383,1754025034488,-460.0,0.00020668,2]
[376563384,1754025034498,-462.2438062,0.00020668,2]
[376563385,1754025034508,-460.0,0.00020668,2]
[376563386,1754025034517,-460.0,0.00020668,2]
[376563387,1754025034527,-460.0,0.00020668,2]
[376563388,1754025034536,-460.0,0.00020668,2]
[376563389,1754025034546,-464.3062489,0.00020668,2]
[376563390,1754025034555,-460.0,0.00020668,2]
[376563391,1754025034564,-460.0,0.00020668,2]
[376563392,1754025034574,-597.61972199,0.00020668,2]
[376563393,1754025034588,-460.0,0.00020668,2]
[376563394,1754025034598,-460.0,0.00020668,2]
[376563395,1754025034607,-460.0,0.00020668,2]
[376563396,1754025034618,-460.0,0.00020668,2]
[376563397,1754025034627,-462.19880309,0.00020668,2]
[376563398,1754025034637,-462.61059509,0.00020668,2]
[376563399,1754025034646,-467.10386756,0.00020668,2]
[376563400,1754025034655,-460.0,0.00020668,2]
[376563401,1754025034665,-460.0,0.00020668,2]
[376563402,1754025034674,-164.50086124,0.00020668,2]
[376563403,1754025034685,-460.0,0.00020668,2]
[376563404,1754025034695,-464.11836823,0.00020668,2]
[376563405,1754025034704,-460.0,0.00020668,2]
[376563406,1754025034714,-466.68293373,0.00020668,2]
[376563407,1754025034724,-460.0,0.00020668,2]
[376563408,1754025034734,-458.4128697,0.00020668,2]
[376563409,1754025034743,-460.0,0.00020668,2]
[376563410,1754025034753,-460.0,0.00020668,2]
[376563411,1754025034763,-463.34125785,0.00020668,2]
[376563412,1754025034772,-461.49252409,0.00020668,2]
[376563413,1754025034781,-463.78586273,0.00020668,2]
[376563414,1754025034790,-460.0,0.00020668,2]
[376563415,1754025034799,-367.39811996,0.00020668,2]
[376563416,1754025034808,-467.02278143,0.00020668,2]
[376563417,1754025034818,-472.96,0.00020668,2]
[376563418,1754025034827,-697.67,0.00020668,2]
[376563419,1754025034836,-460.0,0.00020668,2]
[376563420,1754025034846,-460.0,0.00020668,2]
[376563421,1754025034855,-462.83379164,0.00020668,2]
[376563422,1754025034864,-462.3564401,0.00020668,2]
[376563423,1754025034873,-460.0,0.00020668,2]
[376563424,1754025034883,-447.29905488,0.00020668,2]
[376563425,1754025034892,-460.0,0.00020668,2]
[376563426,1754025034902,-461.3809126,0.00020668,2]
[376563427,1754025034913,-463.60648437,0.00020668,2]
[376563428,1754025034922,-460.0,0.00020668,2]
[376563429,1754025034932,-460.0,0.00020668,2]
[376563430,1754025034941,-488.7,0.00020668,2]
[376563431,1754025034951,-460.0,0.00020668,2]
[376563432,1754025034961,-460.0,0.00020668,2]
[376563433,1754025034971,-464.69032795,0.00020668,2]
[376563434,1754025034979,-460.0,0.00020668,2]
[376563435,1754025034988,-468.61399114,0.00020668,2]
[376563436,1754025034997,-460.0,0.00020668,2]
[376563437,1754025035007,-460.0,0.00020668,2]
[376563438,1754025035016,-461.5849914,0.00020668,2]
[376563439,1754025035025,-460.0,0.00020668,2]
[376563440,1754025035035,-460.0,0.00020668,2]
[376563441,1754025035044,-601.5674641,0.00020668,2]
[376563442,1754025035053,-579.47066768,0.00020668,2]
[376563443,1754025035062,-460.0,0.00020668,2]
[376563444,1754025035072,-460.0,0.00020668,2]
[376563445,1754025035081,-461.86027363,0.00020668,2]
[376563446,1754025035090,-183.08693074,0.00020668,2]
[376563447,1754025035099,-466.4166,0.00020668,2]
[376563448,1754025035108,-460.0,0.00020668,2]
[376563449,1754025035117,-460.0,0.00020668,2]
[376563450,1754025035126,-460.0,0.00020668,2]
[376563451,1754025035136,-293.18449694,0.00020668,2]
[376563452,1754025035145,-460.0,0.00020668,2]
[376563453,1754025035154,-460.0,0.00020668,2]
[376563454,1754025035164,-460.0,0.00020668,2]
[376563455,1754025035173,-460.0,0.00020668,2]
[376563456,1754025035183,-460.0,0.00020668,2]
[376563457,1754025035194,-468.69789445,0.00020668,2]
[376563458,1754025035210,-460.0,0.00020668,2]
[376563459,1754025035219,-460.69976876,0.00020669,2]
[376563460,1754025035229,-460.0,0.00020669,2]
[376563461,1754025035238,-542.47656888,0.00020669,2]
[376563462,1754025035247,-460.0,0.00020669,2]
[376563463,1754025035257,-460.0,0.00020669,2]
[376563464,1754025035266,-465.56370545,0.00020669,2]
[376563465,1754025035277,-460.0,0.00020669,2]
[376563466,1754025035290,-460.0,0.00020669,2]
[376563467,1754025035299,-460.0,0.00020669,2]
[376563468,1754025035309,-460.0,0.00020669,2]
[376563469,1754025035318,-460.0,0.00020669,2]
[376563470,1754025035327,-460.0,0.00020669,2]
[376563471,1754025035336,-460.0,0.00020669,2]
[376563472,1754025035345,-460.0,0.00020669,2]
[376563473,1754025035355,-460.0,0.00020669,2]
[376563474,1754025035363,-474.2330716,0.00020669,2]
[376563475,1754025035373,-460.0,0.00020669,2]
[376563476,1754025035382,-460.0,0.00020669,2]
[376563477,1754025035391,-462.07969479,0.00020669,2]
[376563478,1754025035400,-465.0915266,0.00020669,2]
[376563479,1754025035410,-460.0,0.00020669,2]
[376563480,1754025035419,-463.60996907,0.00020669,2]
[376563481,1754025035428,-460.0,0.00020669,2]
[376563482,1754025035440,-516.87061871,0.00020669,2]
[376563483,1754025035449,-462.18508399,0.00020669,2]
[376563484,1754025035460,-462.792458,0.00020669,2]
[376563485,1754025035471,-460.0,0.00020669,2]
[376563486,1754025035480,-460.0,0.00020669,2]
[376563487,1754025035490,-460.0,0.00020669,2]
[376563488,1754025035499,-460.0,0.00020669,2]
[376563489,1754025035509,-656.95,0.00020669,2]
[376563490,1754025035518,-478.5,0.00020669,2]
[376563491,1754025035528,-460.0,0.00020669,2]
[376563492,1754025035538,-460.0,0.00020669,2]
[376563493,1754025035547,-460.0,0.0002067,2]
[376563494,1754025035557,-338.44411368,0.0002067,2]
[376563495,1754025035566,-463.8695619,0.0002067,2]
[376563496,1754025035575,-463.07962418,0.0002067,2]
[376563497,1754025035584,-460.0,0.0002067,2]
[376563498,1754025035593,-460.0,0.0002067,2]
[376563499,1754025035602,-460.0,0.0002067,2]
[376563500,1754025035612,-460.0,0.0002067,2]
[376563501,1754025035621,-467.25439417,0.0002067,2]
[376563502,1754025035630,-460.0,0.0002067,2]
[376563503,1754025035639,-460.0,0.0002067,2]
[376563504,1754025035649,-464.49804467,0.0002067,2]
[376563505,1754025035659,-460.0,0.0002067,2]
[376563506,1754025035668,-460.0,0.0002067,2]
[376563507,1754025035678,-460.0,0.0002067,2]
[376563508,1754025035688,-460.0,0.0002067,2]
[376563509,1754025035697,-460.0,0.0002067,2]
[376563510,1754025035707,-462.23641223,0.0002067,2]
[376563511,1754025035717,-464.23890129,0.0002067,2]
[376563512,1754025035726,-470.16010482,0.0002067,2]
[376563513,1754025035736,-481.97205858,0.0002067,2]
[376563514,1754025035745,-460.0,0.0002067,2]
[376563515,1754025035755,-460.0,0.0002067,2]
[376563516,1754025035764,-460.0,0.0002067,2]
[376563517,1754025035773,-460.0,0.0002067,2]
[376563518,1754025035783,-462.50269968,0.0002067,2]
[376563519,1754025035792,-460.0,0.0002067,2]
[376563520,1754025035802,-460.0,0.0002067,2]
[376563521,1754025035811,-502.90253703,0.0002067,2]
[376563522,1754025035820,-450.8376376,0.0002067,2]
[376563523,1754025035829,-460.0,0.0002067,2]
[376563524,1754025035839,-349.93093037,0.0002067,2]
[376563525,1754025035848,-476.24885557,0.0002067,2]
[376563526,1754025035858,-419.56686568,0.0002067,2]
[376563527,1754025035868,-460.0,0.0002067,2]
[376563528,1754025035877,-470.3792922,0.0002067,2]
[376563529,1754025035888,-464.93749063,0.0002067,2]
[376563530,1754025035897,-460.0,0.0002067,2]
[376563531,1754025035907,-450.0,0.0002067,2]
[376563532,1754025035916,-464.34845904,0.0002067,2]
[376563533,1754025035927,-460.0,0.0002067,2]
[376563534,1754025035937,-464.6352971,0.0002067,2]
[376563535,1754025035946,-460.0,0.0002067,2]
[376563536,1754025035956,-480.49959062,0.0002067,2]
[376563537,1754025035966,-465.60212253,0.0002067,2]
[376563538,1754025035975,-460.0,0.0002067,2]
[376563539,1754025035984,-460.0,0.0002067,2]
[376563540,1754025035993,-460.0,0.0002067,2]
[376563541,1754025036002,-466.19327922,0.0002067,2]
[376563542,1754025036011,-460.0,0.0002067,2]
[376563543,1754025036021,-460.0,0.0002067,2]
[376563544,1754025036030,-460.0,0.0002067,2]
[376563545,1754025036039,-460.0,0.0002067,2]
[376563546,1754025036049,-460.89190463,0.0002067,2]
[376563547,1754025036059,-473.98212416,0.0002067,2]
[376563548,1754025036068,-460.0,0.0002067,2]
[376563549,1754025036077,-460.0,0.0002067,2]
[376563550,1754025036086,-460.0,0.0002067,2]
[376563551,1754025036095,-463.06367396,0.0002067,2]
[376563552,1754025036105,-160.8486987,0.0002067,2]
[376563553,1754025036114,-483.52702884,0.0002067,2]
[376563554,1754025036123,-464.62981315,0.0002067,2]
[376563555,1754025036132,-460.0,0.0002067,2]
[376563556,1754025036141,-469.0643906,0.0002067,2]
[376563557,1754025036151,-465.94358668,0.0002067,2]
[376563558,1754025036161,-460.0,0.0002067,2]
[376563559,1754025036170,-466.68083142,0.0002067,2]
[376563560,1754025036179,-460.0,0.0002067,2]
[376563561,1754025036189,-460.0,0.0002067,2]
[376563562,1754025036199,-462.41541728,0.0002067,2]
[376563563,1754025036208,-460.0,0.0002067,2]
[376563564,1754025036218,-500.0,0.00020673,2]
[376563565,1754025036227,-280.32777906,0.00020673,2]
[376563566,1754025036243,-219.67222094,0.00020673,2]
[376563567,1754025036254,-62.28546138,0.00020767,2]
[376563571,1754025038917,-257.3189741,0.00020668,2]
[376563572,1754025038929,-741.6810259,0.00020668,2]
[376563573,1754025038939,-516.19756982,0.00020767,2]
[376563574,1754025038948,-929.34,0.00020804,2]
[376563575,1754025038957,-460.0,0.00020804,2]
[376563576,1754025038966,-1072.64106257,0.00020843,2]
[376563577,1754025038975,-1761.05055596,0.00020911,2]
[376563578,1754025038987,-161.75944404,0.00020911,2]
[376563579,1754025038996,-460.0,0.00020911,2]
[376563580,1754025039005,-681.07,0.00020911,2]
[376563581,1754025039015,-551.93,0.00020912,2]
[376563582,1754025039024,-1016.84,0.00020941,2]
[376563583,1754025039033,-1020.33,0.00020941,2]
[376563584,1754025039042,-1560.02,0.00020941,2]
[376563585,1754025039051,-651.84,0.00020941,2]
[376563586,1754025039060,-460.0,0.00020941,2]
[376563587,1754025039069,-660.87,0.00020941,2]
[376563588,1754025039079,-460.0,0.00020941,2]
[376563589,1754025039089,-460.0,0.00020941,2]
[376563590,1754025039098,-460.0,0.00020941,2]
[376563591,1754025039107,-957.08,0.00020941,2]
[376563592,1754025039117,-460.0,0.00020941,2]
[376563593,1754025039126,-460.0,0.00020942,2]
[376563594,1754025039135,-460.0,0.00020942,2]
[376563595,1754025039145,-211.48,0.00020942,2]
[376563596,1754025039154,-386.58713643,0.00020942,2]
[376563597,1754025039163,-460.0,0.00020942,2]
[376563598,1754025039172,-536.36,0.00020942,2]
[376563599,1754025039181,-368.64559786,0.00020942,2]
[376563600,1754025039191,-460.0,0.00020942,2]
[376563601,1754025039199,-460.0,0.00020942,2]
[376563602,1754025039208,-460.0,0.00020942,2]
[376563603,1754025039218,-460.0,0.00020942,2]
[376563604,1754025039227,-607.53,0.00020942,2]
[376563605,1754025039236,-460.0,0.00020942,2]
[376563606,1754025039245,-460.0,0.00020942,2]
[376563607,1754025039255,-460.0,0.00020942,2]
[376563608,1754025039264,-460.0,0.00020942,2]
[376563609,1754025039273,-460.0,0.00020942,2]
[376563610,1754025039283,-460.0,0.00020942,2]
[376563611,1754025039292,-460.0,0.00020942,2]
[376563612,1754025039300,-460.0,0.00020942,2]
[376563613,1754025039310,-460.0,0.00020942,2]
[376563614,1754025039319,-460.0,0.00020942,2]
[376563615,1754025039327,-460.0,0.00020942,2]
[376563617,1754025039336,-460.0,0.00020942,2]
[376563619,1754025039345,-479.99079393,0.00020942,2]
[376563620,1754025039354,-460.0,0.00020942,2]
[376563621,1754025039363,-941.98,0.00020942,2]
[376563622,1754025039373,-536.99,0.00020942,2]
[376563624,1754025039382,-460.0,0.00020942,2]
[376563626,1754025039391,-697.67,0.00020942,2]
[376563628,1754025039400,-320.89010099,0.00020942,2]
[376563630,1754025039409,-247.92752126,0.00020942,2]
[376563631,1754025039419,-656.95,0.00020943,2]
[376563632,1754025039428,-478.5,0.00020943,2]
[376563633,1754025039438,-460.0,0.00020943,2]
[376563634,1754025039447,-463.0806905,0.00020944,2]
[376563635,1754025039457,-334.69517894,0.00020944,2]
[376563636,1754025039468,-766.98,0.00020945,2]
[376563637,1754025039478,-354.5843221,0.0002099,2]
[376563638,1754025039487,-3000.0,0.00021,2]
[376563639,1754025039496,-3000.0,0.0002101,2]
[376563640,1754025039506,-3000.0,0.0002102,2]
[376563641,1754025039516,-3000.0,0.0002103,2]
[376563642,1754025039525,-500.0,0.00021035,2]
[376563643,1754025039535,-3000.0,0.0002104,2]
[376563644,1754025039547,-3000.0,0.0002105,2]
[376563645,1754025039556,-3000.0,0.0002106,2]
[376563646,1754025039566,-3000.0,0.0002107,2]
[376563647,1754025039576,-929.34,0.00021078,2]
[376563648,1754025039585,-200.0,0.00021079,15]
[376563649,1754025039594,-200.0,0.00021079,15]
[376563650,1754025039604,-200.0,0.00021079,15]
[376563651,1754025039613,-200.0,0.00021079,15]
[376563652,1754025039622,-200.0,0.00021079,15]
[376563653,1754025039631,-3000.0,0.0002108,2]
[376563654,1754025039641,-3000.0,0.0002109,2]
[376563655,1754025039650,-3000.0,0.000211,2]
[376563656,1754025039660,-3000.0,0.0002111,2]
[376563657,1754025039670,-3973.705031,0.0002112,2]
[376563658,1754025039679,-1922.81,0.00021185,2]
[376563659,1754025039689,-460.0,0.00021185,2]
[376563660,1754025039698,-681.07,0.00021185,2]
[376563661,1754025039707,-551.93,0.00021186,2]
[376563662,1754025039716,-1016.84,0.00021215,2]
[376563663,1754025039726,-1020.33,0.00021215,2]
[376563664,1754025039735,-1560.02,0.00021215,2]
[376563665,1754025039744,-651.84,0.00021215,2]
[376563666,1754025039753,-460.0,0.00021215,2]
[376563667,1754025039762,-660.87,0.00021215,2]
[376563668,1754025039771,-460.0,0.00021215,2]
[376563669,1754025039781,-460.0,0.00021215,2]
[376563670,1754025039790,-460.0,0.00021215,2]
[376563671,1754025039799,-957.08,0.00021215,2]
[376563672,1754025039808,-460.0,0.00021215,2]
[376563673,1754025039817,-528.39,0.00021216,2]
[376563674,1754025039827,-359.44,0.00021216,2]
[376563675,1754025039836,-460.0,0.00021216,2]
[376563676,1754025039846,-460.0,0.00021216,2]
[376563677,1754025039861,-460.0,0.00021216,2]
[376563678,1754025039875,-460.0,0.00021216,2]
[376563679,1754025039883,-460.0,0.00021216,2]
[376563680,1754025039893,-592.88,0.00021216,2]
[376563681,1754025039902,-460.0,0.00021216,2]
[376563682,1754025039911,-941.98,0.00021216,2]
[376563683,1754025039921,-460.0,0.00021216,2]
[376563684,1754025039930,-697.67,0.00021216,2]
[376563685,1754025039939,-656.95,0.00021217,2]
[376563686,1754025039949,-478.5,0.00021217,2]
[376563687,1754025039958,-460.0,0.00021217,2]
[376563688,1754025039967,-766.98,0.00021219,2]
[376563689,1754025039976,-1000.0,0.00021221,2]
[376563690,1754025039986,-151.0,0.00021221,2]
[376563691,1754025039995,-151.0,0.00021221,2]
[376563692,1754025040004,-151.0,0.00021221,2]
[376563693,1754025040013,-151.0,0.00021221,2]
[376563694,1754025040022,-151.0,0.00021221,2]
[376563695,1754025040032,-151.0,0.00021221,2]
[376563696,1754025040041,-151.0,0.00021221,2]
[376563697,1754025040051,-151.0,0.00021221,2]
[376563698,1754025040059,-151.0,0.00021221,2]
[376563699,1754025040069,-151.0,0.00021221,2]
[376563700,1754025040078,-151.0,0.00021221,2]
[376563701,1754025040087,-151.0,0.00021221,2]
[376563702,1754025040095,-151.0,0.00021221,2]
[376563703,1754025040104,-151.0,0.00021221,2]
[376563704,1754025040113,-151.0,0.00021221,2]
[376563705,1754025040123,-151.0,0.00021221,2]
[376563706,1754025040132,-151.0,0.00021221,2]
[376563707,1754025040141,-151.0,0.00021221,2]
[376563708,1754025040151,-151.0,0.00021221,2]
[376563709,1754025040160,-151.0,0.00021221,2]
[376563710,1754025040169,-151.0,0.00021221,2]
[376563711,1754025040178,-151.0,0.00021221,2]
[376563712,1754025040187,-151.0,0.00021221,2]
[376563713,1754025040196,-151.0,0.00021221,2]
[376563714,1754025040206,-151.0,0.00021221,2]
[376563715,1754025040215,-151.0,0.00021221,2]
[376563716,1754025040224,-151.0,0.00021221,2]
[376563717,1754025040233,-151.0,0.00021221,2]
[376563718,1754025040243,-151.0,0.00021221,2]
[376563719,1754025040252,-151.0,0.00021221,2]
[376563720,1754025040261,-151.0,0.00021221,2]
[376563721,1754025040270,-151.0,0.00021221,2]
[376563722,1754025040280,-151.0,0.00021221,2]
[376563723,1754025040289,-2030.296672,0.00021221,2]
[376563724,1754025040298,-151.0,0.00021221,2]
[376563725,1754025040307,-151.0,0.00021221,2]
[376563726,1754025040316,-151.0,0.00021221,2]
[376563727,1754025040326,-151.0,0.00021221,2]
[376563729,1754025040335,-287.2796571,0.00021221,2]
[376563732,1754025040344,-151.0,0.00021221,2]
[376563735,1754025040353,-151.0,0.00021221,2]
[376563737,1754025040362,-156.93929442,0.00021221,2]
[376563741,1754025040371,-151.0,0.00021221,2]
[376563743,1754025040380,-151.0,0.00021221,2]
[376563746,1754025040389,-151.0,0.00021221,2]
[376563749,1754025040399,-151.0,0.00021221,2]
[376563753,1754025040408,-152.89833436,0.00021221,2]
[376563756,1754025040417,-151.0,0.00021221,2]
[376563759,1754025040426,-151.0,0.00021221,2]
[376563762,1754025040437,-151.0,0.00021221,2]
[376563764,1754025040446,-151.0,0.00021221,2]
[376563767,1754025040458,-151.0,0.00021221,2]
[376563770,1754025040470,-151.0,0.00021221,2]
[376563773,1754025040479,-151.0,0.00021221,2]
[376563776,1754025040488,-151.0,0.00021276,2]
[376563779,1754025040500,-1771.34532801,0.00021276,2]
[376563782,1754025040510,-929.34,0.00021352,2]
[376563785,1754025040519,-160.0,0.00021386,2]
[376563788,1754025040528,-1922.81,0.00021459,2]
[376563791,1754025040538,-460.0,0.00021459,2]
[376563794,1754025040548,-152.151596,0.00021459,2]
[376563796,1754025040557,-681.07,0.00021459,2]
[376563798,1754025040567,-151.370755,0.00021459,2]
[376563800,1754025040576,-151.0,0.00021459,2]
[376563802,1754025040585,-151.0,0.00021459,2]
[376563804,1754025040594,-551.93,0.0002146,2]
[376563806,1754025040604,-1016.84,0.00021489,2]
[376563809,1754025040613,-1020.33,0.00021489,2]
[376563810,1754025040623,-1560.02,0.00021489,2]
[376563813,1754025040632,-651.84,0.00021489,2]
[376563815,1754025040642,-460.0,0.00021489,2]
[376563816,1754025040651,-660.87,0.00021489,2]
[376563818,1754025040661,-460.0,0.00021489,2]
[376563821,1754025040670,-167.06,0.00021489,2]
[376563823,1754025040679,-460.0,0.00021489,2]
[376563825,1754025040689,-957.08,0.00021489,2]
[376563827,1754025040698,-607.15402426,0.00021489,2]
[376563829,1754025040707,-460.0,0.0002149,2]
[376563831,1754025040717,-460.0,0.0002149,2]
[376563833,1754025040726,-151.0,0.0002149,2]
[376563835,1754025040735,-941.98,0.0002149,2]
[376563836,1754025040744,-152.174412,0.0002149,2]
[376563838,1754025040753,-151.0,0.0002149,2]
[376563841,1754025040763,-305.21,0.0002149,2]
[376563843,1754025040772,-151.0,0.0002149,2]
[376563845,1754025040781,-697.67,0.0002149,2]
[376563846,1754025040791,-415.842854,0.0002149,2]
[376563848,1754025040800,-415.842854,0.0002149,2]
[376563850,1754025040809,-656.95,0.00021491,2]
[376563852,1754025040819,-478.5,0.00021491,2]
[376563854,1754025040828,-460.0,0.00021491,2]
[376563856,1754025040837,-766.98,0.00021493,2]
[376563857,1754025040846,-151.0,0.00021494,2]
[376563859,1754025040856,-176.810441,0.00021494,2]
[376563861,1754025040866,-151.884947,0.00021494,2]
[376563863,1754025040875,-151.0,0.00021494,2]
[376563865,1754025040885,-280.404748,0.00021494,2]
[376563867,1754025040894,-207.316875,0.00021494,2]
[376563869,1754025040903,-207.316875,0.00021494,2]
[376563871,1754025040912,-212.2,0.00021521,4]
[376563873,1754025040922,-929.34,0.00021626,2]
[376563875,1754025040933,-6830.72581436,0.00021667,2]
[376563876,1754025040943,-1072.64106257,0.00021688,2]
[376563877,1754025040952,-1922.81,0.00021733,2]
[376563879,1754025040961,-460.0,0.00021733,2]
[376563881,1754025040972,-681.07,0.00021733,2]
[376563883,1754025040981,-551.93,0.00021734,2]
[376563885,1754025040990,-151.0,0.00021736,2]
[376563887,1754025041000,-151.0,0.00021736,2]
[376563889,1754025041009,-152.871016,0.00021736,2]
[376563891,1754025041018,-151.0,0.00021736,2]
[376563893,1754025041027,-151.0,0.00021736,2]
[376563895,1754025041036,-244.657523,0.00021736,2]
[376563897,1754025041046,-244.657523,0.00021736,2]
[376563899,1754025041055,-151.0,0.00021736,2]
[376563901,1754025041064,-151.0,0.00021736,2]
[376563903,1754025041073,-151.0,0.00021736,2]
[376563905,1754025041082,-426.048569,0.00021736,2]
[376563906,1754025041092,-1016.84,0.00021763,2]
[376563907,1754025041101,-1020.33,0.00021763,2]
[376563908,1754025041110,-1560.02,0.00021763,2]
[376563909,1754025041121,-651.84,0.00021763,2]
[376563910,1754025041130,-460.0,0.00021763,2]
[376563911,1754025041139,-660.87,0.00021763,2]
[376563912,1754025041148,-460.0,0.00021763,2]
[376563913,1754025041158,-460.0,0.00021763,2]
[376563914,1754025041169,-957.08,0.00021763,2]
[376563915,1754025041178,-460.0,0.00021764,2]
[376563916,1754025041188,-941.98,0.00021764,2]
[376563918,1754025041295,-697.67,0.00021764,2]
[376563919,1754025041305,-656.95,0.00021765,2]
[376563920,1754025041315,-478.5,0.00021765,2]
[376563921,1754025041324,-460.0,0.00021765,2]
[376563922,1754025041334,-151.0,0.00021767,2]
[376563923,1754025041343,-151.0,0.00021767,2]
[376563924,1754025041352,-158.629589,0.00021767,2]
[376563925,1754025041363,-151.413033,0.00021767,2]
[376563926,1754025041372,-152.150739,0.00021767,2]
[376563927,1754025041383,-212.55667,0.00021767,2]
[376563928,1754025041392,-212.55667,0.00021767,2]
[376563929,1754025041403,-766.98,0.00021767,2]
[376563930,1754025041413,-151.0,0.00021767,2]
[376563931,1754025041422,-1500.0,0.00021768,2]
[376563932,1754025041432,-248.857,0.00021791,2]
[376563933,1754025041442,-1000.0,0.0002181,5]
[376563934,1754025041451,-929.34,0.000219,2]
[376563935,1754025041463,-500.0,0.00021917,2]
[376563936,1754025041473,-500.0,0.00021917,2]
[376563937,1754025041483,-500.0,0.00021917,2]
[376563938,1754025041493,-500.0,0.00021917,2]
[376563939,1754025041503,-500.0,0.00021917,2]
[376563940,1754025041512,-380.824437,0.00021918,2]
[376563941,1754025041523,-380.824437,0.00021918,2]
[376563942,1754025041533,-200.0,0.00021918,2]
[376563943,1754025041543,-260.0,0.00021934,2]
[376563944,1754025041552,-212.2,0.00021975,4]
[376563945,1754025041561,-1626.62,0.00022,2]
[376563946,1754025041570,-178.0,0.00022,2]
[376563947,1754025041581,-1922.81,0.00022007,2]
[376563948,1754025041590,-460.0,0.00022007,2]
[376563949,1754025041599,-681.07,0.00022007,2]
[376563950,1754025041611,-551.93,0.00022008,2]
[376563951,1754025041620,-1792.0,0.00022027,2]
[376563952,1754025041630,-1016.84,0.00022037,2]
[376563953,1754025041639,-1020.33,0.00022037,2]
[376563954,1754025041648,-1560.02,0.00022037,2]
[376563955,1754025041658,-651.84,0.00022037,2]
[376563956,1754025041668,-660.87,0.00022037,2]
[376563957,1754025041677,-460.0,0.00022037,2]
[376563958,1754025041687,-460.0,0.00022037,2]
[376563959,1754025041697,-151.0,0.00022037,7]
[376563960,1754025041707,-957.08,0.00022037,2]
[376563961,1754025041716,-151.0,0.00022037,7]
[376563962,1754025041726,-151.40149,0.00022037,7]
[376563963,1754025041737,-500.0,0.00022038,2]
[376563964,1754025041746,-460.0,0.00022038,2]
[376563965,1754025041756,-941.98,0.00022038,2]
[376563966,1754025041765,-151.0,0.00022038,7]
[376563967,1754025041775,-697.67,0.00022038,2]
[376563968,1754025041784,-220.339657,0.00022039,7]
[376563969,1754025041794,-151.0,0.00022039,7]
[376563970,1754025041804,-151.0,0.00022039,7]
[376563971,1754025041814,-656.95,0.00022039,2]
[376563972,1754025041823,-478.5,0.00022039,2]
[376563973,1754025041833,-151.0,0.00022039,7]
[376563974,1754025041842,-151.0,0.00022039,7]
[376563975,1754025041851,-460.0,0.00022039,2]